lending/lending_fUSD_20260328
["ID","MTS","AMOUNT","RATE_DAILY","PERIOD"]
[418960921,1774661434209,-425.9615233,0.00010136,2]
[418960922,1774661434218,-874.0384767,0.0001025,2]
[418960923,1774661434231,-119.81948261,0.0001025,2]
[418960924,1774661434242,-2338.84,0.00010417,2]
[418960925,1774661434251,-250.0,0.00010577,2]
[418960926,1774661434261,-250.0,0.00010577,2]
[418960927,1774661434270,-150.0,0.000108,2]
[418960928,1774661434280,-141.34051739,0.00010818,2]
[418960929,1774661434292,-301.48251273,0.00010818,2]
[418960930,1774661434304,-924.05253866,0.00010818,2]
[418960931,1774661434315,-971.96443122,0.00010818,2]
[418960932,1774661434325,-195.09,0.00010919,2]
[418960933,1774661434334,-420.0,0.00011147,2]
[418960934,1774661434344,-1548.81620175,0.00011218,2]
[418960935,1774661434356,-314.57995572,0.00011218,2]
[418960936,1774661434372,-475.44384253,0.00011218,2]
[418960937,1774661434382,-150.0,0.00011365,2]
[418960938,1774661434391,-525.40417475,0.00011444,2]
[418960947,1774661434544,-189.44762194,0.00011542,2]
[418960948,1774661434554,-251.0,0.00011607,2]
[418960949,1774661434563,-2338.84,0.00011619,2]
[418960950,1774661434572,-160.44,0.00011803,2]
[418960951,1774661434582,-2338.84,0.00012019,2]
[418960952,1774661434591,-150.0,0.00012338,2]
[418960953,1774661434600,-503.9477196,0.00012339,2]
[418960954,1774661434609,-151.0,0.00012339,2]
[418960955,1774661434618,-151.0,0.00012339,2]
[418960956,1774661434627,-151.0,0.00012339,2]
[418960957,1774661434638,-151.0,0.00012339,2]
[418960958,1774661434647,-151.0,0.00012339,2]
[418960959,1774661434657,-151.0,0.00012339,2]
[418960960,1774661434666,-151.0,0.00012339,2]
[418960961,1774661434675,-151.0,0.00012339,2]
[418960962,1774661434685,-151.0,0.00012339,2]
[418960963,1774661434694,-500.0,0.00012339,2]
[418960964,1774661434704,-151.0,0.00012339,2]
[418960965,1774661434713,-500.0,0.00012339,2]
[418960966,1774661434722,-151.0,0.00012339,2]
[418960967,1774661434731,-151.0,0.00012339,2]
[418960968,1774661434740,-500.0,0.00012339,2]
[418960969,1774661434749,-246.12567273,0.00012339,2]
[418960970,1774661434758,-500.0,0.00012339,2]
[418960971,1774661434767,-500.0,0.00012339,2]
[418960972,1774661434776,-500.0,0.00012339,2]
[418960973,1774661434785,-500.0,0.00012339,2]
[418960974,1774661434795,-500.0,0.00012339,2]
[418960975,1774661434804,-500.0,0.00012339,2]
[418960976,1774661434813,-500.0,0.00012339,2]
[418960977,1774661434822,-500.0,0.00012339,2]
[418960978,1774661434831,-500.0,0.00012339,2]
[418960979,1774661434840,-1183.78,0.00012339,2]
[418960980,1774661434849,-331.87757293,0.00012346,2]
[418960981,1774661434883,-1513.58232096,0.00012346,2]
[418960982,1774661434894,-5581.20010611,0.00012346,2]
[418960983,1774661434903,-2338.84,0.0001242,2]
[418960984,1774661434912,-160.44,0.00012459,2]
[418960985,1774661434921,-500.91,0.00012608,2]
[418960986,1774661434930,-1183.78,0.00012613,2]
[418960987,1774661434939,-2338.84,0.00012821,2]
[418960988,1774661434948,-1183.78,0.00012887,2]
[418960989,1774661434957,-250.0,0.00013,2]
[418960990,1774661434967,-517.0,0.00013111,2]
[418960991,1774661434976,-533.0,0.00013111,2]
[418960992,1774661434985,-160.44,0.00013115,2]
[418960993,1774661434996,-1183.78,0.00013161,2]
[418960994,1774661435006,-2338.84,0.00013221,2]
[418960995,1774661435018,-255.0,0.00013424,2]
[418960996,1774661435027,-1183.78,0.00013435,2]
[418960997,1774661435038,-487.9351,0.000135,2]
[418960998,1774661435048,-214.89692914,0.00013599,2]
[418960999,1774661435058,-2338.84,0.00013622,2]
[418961000,1774661435067,-525.18426766,0.00013648,2]
[418961001,1774661435076,-78313.40864339,0.00013649,2]
[418961002,1774661435089,-935.0,0.00013649,2]
[418961003,1774661435100,-10300.29639889,0.00013649,2]
[418961004,1774661435112,-625.6194234,0.00013649,2]
[418961005,1774661435123,-817.79588592,0.00013649,2]
[418961006,1774661435136,-7429.15230123,0.00013649,2]
[418961007,1774661435149,-622.24371639,0.00013649,2]
[418961008,1774661435161,-1120.8077338,0.00013649,2]
[418961009,1774661435175,-3401.21383875,0.00013649,2]
[418961010,1774661438181,-428.14195807,0.00013649,2]
[418961011,1774661438192,-371.51233479,0.00013649,2]
[418961012,1774661438203,-7828.6894851,0.00013649,2]
[418961017,1774661440389,-562.8701726,0.00013649,2]
[418961018,1774661440403,-59192.91810767,0.00013649,2]
[418961019,1774661440412,-1579.85,0.00013699,2]
[418961020,1774661440421,-1183.78,0.00013709,2]
[418961021,1774661440431,-160.44,0.0001377,2]
[418961022,1774661440440,-214.89692906,0.00013855,2]
[418961023,1774661440449,-150.2148,0.000139,2]
[418961024,1774661440459,-1183.78,0.00013983,2]
[418961025,1774661440468,-2338.84,0.00014023,2]
[418961026,1774661440477,-214.89692906,0.0001411,2]
[418961027,1774661440486,-1183.8041244,0.00014257,2]
[418961028,1774661440495,-214.89692906,0.00014366,2]
[418961029,1774661440504,-1579.85,0.00014384,2]
[418961030,1774661440514,-2338.84,0.00014423,2]
[418961031,1774661440523,-160.44,0.00014426,2]
[418961032,1774661440532,-214.89692906,0.00014622,2]
[418961033,1774661440541,-300.0,0.000147,5]
[418961034,1774661440550,-200.0,0.000147,5]
[418961035,1774661440560,-200.0,0.000147,5]
[418961036,1774661440569,-2806.0,0.00014728,2]
[418961037,1774661440578,-700.0,0.000148,5]
[418961038,1774661440587,-400.0,0.000148,5]
[418961039,1774661440596,-500.0,0.000148,5]
[418961040,1774661440606,-151.0,0.00014803,2]
[418961041,1774661440615,-500.0,0.00014823,2]
[418961042,1774661440624,-2338.84,0.00014824,2]
[418961043,1774661440633,-214.89692906,0.00014877,2]
[418961044,1774661440643,-302.73019387,0.000149,2]
[418961045,1774661440652,-1000.0,0.000149,5]
[418961046,1774661440661,-600.0,0.000149,5]
[418961047,1774661440671,-800.0,0.000149,5]
[418961048,1774661440681,-500.0,0.00014904,2]
[418961049,1774661440690,-500.0,0.00014904,2]
[418961050,1774661440700,-500.0,0.00014904,2]
[418961051,1774661440709,-500.0,0.00014904,2]
[418961052,1774661440718,-619.2646119,0.00014904,2]
[418961053,1774661440727,-271.15437316,0.00014912,2]
[418961054,1774661440736,-5000.0,0.00014973,2]
[418961055,1774661440745,-462.55036404,0.00014982,2]
[418961056,1774661440754,-20547.38862954,0.00014982,2]
[418961057,1774661440764,-189.17694444,0.00014982,2]
[418961058,1774661440773,-1000.0,0.00015038,2]
[418961059,1774661440783,-153.0,0.00015057,2]
[418961060,1774661440793,-153.0,0.00015057,2]
[418961061,1774661440804,-296.0,0.0001506,2]
[418961062,1774661440815,-195.78200293,0.00015063,2]
[418961063,1774661440826,-1579.85,0.00015068,2]
[418961064,1774661440837,-225.0,0.00015068,2]
[418961065,1774661440847,-151.0,0.0001507,2]
[418961066,1774661440857,-237.71954431,0.00015072,2]
[418961067,1774661440867,-500.0,0.00015072,2]
[418961068,1774661440878,-500.0,0.00015072,2]
[418961069,1774661440888,-500.0,0.00015072,2]
[418961070,1774661440898,-228.23018218,0.00015072,2]
[418961071,1774661440907,-500.0,0.00015072,2]
[418961072,1774661440917,-500.0,0.00015072,2]
[418961073,1774661440928,-500.0,0.00015072,2]
[418961074,1774661440938,-419.3953279,0.00015072,2]
[418961075,1774661440948,-278.3397915,0.00015072,2]
[418961076,1774661440958,-500.0,0.00015072,2]
[418961077,1774661440967,-500.0,0.00015072,2]
[418961078,1774661440975,-500.0,0.00015072,2]
[418961079,1774661440985,-500.0,0.00015072,2]
[418961080,1774661440994,-500.0,0.00015072,2]
[418961081,1774661441003,-500.0,0.00015072,2]
[418961082,1774661441012,-500.0,0.00015073,2]
[418961083,1774661441022,-500.0,0.00015073,2]
[418961084,1774661441031,-500.0,0.00015073,2]
[418961085,1774661441040,-612.19650717,0.00015073,2]
[418961086,1774661441050,-500.0,0.00015073,2]
[418961087,1774661441059,-217.58086681,0.00015073,2]
[418961088,1774661441068,-500.0,0.00015073,2]
[418961089,1774661441077,-500.0,0.00015073,2]
[418961090,1774661441087,-500.0,0.00015073,2]
[418961091,1774661441099,-341.83590055,0.00015073,2]
[418961092,1774661441108,-413.66090101,0.00015073,2]
[418961093,1774661441117,-500.0,0.00015073,2]
[418961094,1774661441127,-500.0,0.00015073,2]
[418961095,1774661441136,-500.0,0.00015073,2]
[418961096,1774661441145,-500.0,0.00015073,2]
[418961097,1774661441154,-500.0,0.00015073,2]
[418961098,1774661441164,-559.65581589,0.00015073,2]
[418961099,1774661441173,-500.0,0.00015073,2]
[418961100,1774661441182,-500.0,0.00015073,2]
[418961101,1774661441191,-500.0,0.00015073,2]
[418961102,1774661441329,-12517.2196935,0.00015073,2]
[418961103,1774661441343,-1066601.38979457,0.00015073,2]
[418961104,1774661441365,-7186.71156672,0.00015073,2]
[418961107,1774661442870,-144948.00000014,0.00015073,2]
[418961108,1774661443178,-49397.33100574,0.00015073,2]
[418961109,1774661443190,-271.96277641,0.00015073,2]
[418961110,1774661443203,-89830.82353829,0.00015073,2]
[418961114,1774661446169,-159.67,0.00014144,2]
[418961115,1774661446181,-129246.56162463,0.00015073,2]
[418961116,1774661446191,-160.44,0.00015082,2]
[418961117,1774661446200,-3244.32071388,0.00015084,2]
[418961118,1774661446212,-17303.06791563,0.00015084,2]
[418961119,1774661446221,-214.89692906,0.00015133,2]
[418961120,1774661446231,-151.0,0.00015173,2]
[418961121,1774661446241,-151.0,0.00015173,2]
[418961122,1774661446251,-1592.67515531,0.00015186,2]
[418961123,1774661446263,-8881.58312198,0.00015186,2]
[418961316,1774662631823,-186.63,0.00011149,2]
[418961317,1774662631832,-853.11,0.00011507,2]
[418961318,1774662631842,-252.65261837,0.00012264,2]
[418961319,1774662631851,-212.88267633,0.00012888,2]
[418961320,1774662631860,-522.0,0.00013111,2]
[418961321,1774662631870,-166.66,0.00013242,2]
[418961322,1774662631879,-401.04,0.00013268,2]
[418961323,1774662631888,-3240.0,0.00013425,2]
[418961324,1774662631897,-293.65,0.00013475,2]
[418961325,1774662631908,-666.0,0.00013499,2]
[418961326,1774662631918,-500.0,0.000135,2]
[418961327,1774662631929,-150.0,0.000135,2]
[418961328,1774662631939,-166.66,0.0001352,2]
[418961329,1774662631951,-300.0,0.00013523,2]
[418961330,1774662631961,-1705.2,0.00013524,2]
[418961331,1774662631971,-248.81,0.00013573,2]
[418961332,1774662631981,-510.0,0.000136,2]
[418961333,1774662631990,-200.0,0.00013699,2]
[418961334,1774662631999,-273.76,0.00013735,2]
[418961335,1774662632008,-166.66,0.00013799,2]
[418961336,1774662632021,-2614.08,0.0001398,2]
[418961337,1774662632032,-934.74589959,0.00014006,2]
[418961338,1774662632043,-2000.0,0.00014006,2]
[418961339,1774662632052,-166.66,0.00014078,2]
[418961340,1774662632062,-184.12,0.00014151,3]
[418961341,1774662632071,-150.0,0.00014151,2]
[418961342,1774662632080,-987.78996471,0.00014201,2]
[418961343,1774662632091,-615.0895075,0.00014201,2]
[418961344,1774662632100,-200.0,0.00014311,2]
[418961345,1774662632110,-5040.05064572,0.00014319,2]
[418961346,1774662632119,-351.96292342,0.00014319,2]
[418961347,1774662632128,-166.66,0.00014357,2]
[418961348,1774662632137,-4880.24,0.00014565,2]
[418961349,1774662632146,-900.0,0.000146,5]
[418961351,1774662632156,-166.66,0.00014635,2]
[418961353,1774662632165,-1000.0,0.0001467,2]
[418961355,1774662632175,-9017.38429352,0.00014671,2]
[418961356,1774662632185,-181.80503375,0.00014671,2]
[418961357,1774662632195,-754.74378985,0.00014671,2]
[418961358,1774662632206,-1800.0,0.000147,5]
[418961359,1774662632215,-500.0,0.00014799,2]
[418961360,1774662632224,-519.1375719,0.00014799,2]
[418961361,1774662632233,-2700.0,0.000148,5]
[418961362,1774662632243,-244.0,0.00014822,2]
[418961364,1774662632252,-501.9500768,0.00014823,2]
[418961365,1774662632261,-202.41914726,0.00014859,2]
[418961366,1774662632270,-5320.3201,0.00014885,2]
[418961368,1774662632279,-500.0,0.00014899,2]
[418961369,1774662632287,-515.16518453,0.00014899,2]
[418961370,1774662632297,-500.0,0.00014899,2]
[418961371,1774662632306,-514.25067102,0.00014899,2]
[418961372,1774662632315,-3764.35479892,0.00014899,2]
[418961373,1774662632324,-3600.0,0.000149,5]
[418961374,1774662632333,-21543.4347968,0.00014935,2]
[418961375,1774662632345,-745.73937878,0.00014935,2]
[418961376,1774662632359,-405.21062676,0.00014935,2]
[418961377,1774662632384,-1125.14410807,0.00014935,2]
[418961380,1774662637937,-2985.98816498,0.00014935,2]
[418961381,1774662637946,-310.45585293,0.00014973,2]
[418961382,1774662637956,-500.13692831,0.00014973,2]
[418961383,1774662637965,-2500.0,0.00014974,2]
[418961384,1774662637975,-47732.9853,0.00014985,2]
[418961385,1774662637984,-5000.0,0.00014986,2]
[418961386,1774662637993,-545.32613469,0.00014995,2]
[418961387,1774662638002,-186.89680517,0.00014995,2]
[418961388,1774662638012,-16607.57559073,0.00014995,2]
[418961389,1774662638021,-1001.76089238,0.00014999,2]
[418961390,1774662638031,-220293.62701015,0.00015,7]
[418961391,1774662638041,-3764.35479886,0.0001501,2]
[418961392,1774662638050,-521.10158946,0.00015072,2]
[418961393,1774662638059,-500.0,0.00015072,2]
[418961394,1774662638069,-521.48738685,0.00015072,2]
[418961395,1774662638078,-199.77172522,0.00015073,2]
[418961396,1774662638087,-500.34210025,0.00015073,2]
[418961397,1774662638096,-160.30121654,0.00015073,2]
[418961398,1774662638106,-501.55583248,0.00015073,2]
[418961399,1774662638115,-500.0,0.00015073,2]
[418961400,1774662638124,-500.0,0.00015073,2]
[418961401,1774662638133,-513.91252019,0.00015073,2]
[418961402,1774662638143,-500.0,0.00015073,2]
[418961403,1774662638153,-500.0,0.00015073,2]
[418961404,1774662638162,-500.0,0.00015073,2]
[418961405,1774662638172,-500.0,0.00015073,2]
[418961406,1774662638181,-512.75980746,0.00015073,2]
[418961407,1774662638190,-499.6803439,0.00015074,2]
[418961408,1774662638199,-525.0154868,0.00015074,2]
[418961409,1774662638209,-9264.9430381,0.00015074,2]
[418961410,1774662638218,-99155.6988668,0.00015074,2]
[418961411,1774662638227,-195.78200294,0.00015076,2]
[418961412,1774662638238,-500.0,0.00015085,2]
[418961413,1774662638247,-500.0,0.00015085,2]
[418961414,1774662638257,-513.10242381,0.00015085,2]
[418961415,1774662638266,-526.81,0.00015085,2]
[418961416,1774662638276,-500.0,0.00015085,2]
[418961417,1774662638286,-500.0,0.00015085,2]
[418961418,1774662638295,-516.86959975,0.00015085,2]
[418961419,1774662638305,-500.0,0.00015085,2]
[418961420,1774662638316,-470.0,0.00015085,2]
[418961421,1774662638326,-545.76447195,0.00015085,2]
[418961422,1774662638335,-514.51122523,0.00015085,2]
[418961423,1774662638344,-586.09491028,0.00015085,2]
[418961424,1774662638353,-500.0,0.00015085,2]
[418961425,1774662638362,-500.0,0.00015085,2]
[418961426,1774662638371,-500.0,0.00015085,2]
[418961427,1774662638381,-500.0,0.00015085,2]
[418961428,1774662638391,-500.0,0.00015085,2]
[418961429,1774662638400,-500.0,0.00015085,2]
[418961430,1774662638409,-500.0,0.00015085,2]
[418961432,1774662638418,-513.50281889,0.00015085,2]
[418961433,1774662638427,-509.99225915,0.00015085,2]
[418961434,1774662638437,-195911.56427779,0.00015086,2]
[418961435,1774662638449,-7786.03796522,0.00015086,2]
[418961436,1774662638464,-693.07436283,0.00015086,2]
[418961438,1774662638479,-1260.39257874,0.00015086,2]
[418961440,1774662638494,-431.43389538,0.00015086,2]
[418961441,1774662638505,-1559.99999991,0.00015086,2]
[418961444,1774662640252,-670.59943,0.00015086,2]
[418961445,1774662640828,-4491.63396319,0.00015086,2]
[418961446,1774662640884,-538.01730234,0.00015086,2]
[418961466,1774662643407,-61177.27516071,0.00015086,2]
[418961467,1774662643464,-310.83837057,0.00015086,2]
[418961497,1774662645922,-2393.12166115,0.00015086,2]
[418961498,1774662645936,-890.74413196,0.00015086,2]
[418961499,1774662646291,-507.5,0.00015086,2]
[418961590,1774662709827,265.44,0.000137,30]
[418961592,1774662818570,456.69,6.623e-05,2]
[418961593,1774662818763,456.69,6.971e-05,2]
[418961594,1774662818974,456.69,7.32e-05,2]
[418961595,1774662819170,456.69,7.669e-05,2]
[418961596,1774662819367,456.69,8.017e-05,2]
[418961597,1774662819558,456.69,8.366e-05,2]
[418961598,1774662819774,456.69,8.714e-05,2]
[418961599,1774662846567,199.0,8.714e-05,3]
[418961600,1774662848054,173.0,8.714e-05,3]
[418961601,1774662945324,2594.6,0.000137,30]
[418961604,1774662972796,1880.0,8.46e-05,2]
[418961605,1774663035519,1001.84,8.223e-05,2]
[418961606,1774663036029,1099.96,8.896e-05,2]
[418961608,1774663533126,-456.69,9.063e-05,2]
[418961609,1774663533148,-246.0,9.063e-05,2]
[418961610,1774663533171,-1297.31,9.308e-05,2]
[418961614,1774663596078,727.84,8.716e-05,2]
[418961615,1774663596589,1770.0,8.905e-05,2]
[418961638,1774663832114,-248.0,9.174e-05,2]
[418961639,1774663832123,-919.00146,9.174e-05,2]
[418961640,1774663832201,-550.31854,9.174e-05,2]
[418961641,1774663832210,-165.97,9.308e-05,2]
[418961642,1774663832219,-1000.0,9.38e-05,2]
[418961643,1774663832238,-456.69,9.412e-05,2]
[418961644,1774663832251,-627.98807148,9.625e-05,2]
[418961645,1774663832264,-272.01192852,9.625e-05,2]
[418961646,1774663832274,-1894.02,9.655e-05,2]
[418961647,1774663832284,-456.69,9.76e-05,2]
[418961648,1774663832294,-1000.0,9.888e-05,2]
[418961649,1774663832304,-179.0,9.996e-05,2]
[418961650,1774663832314,-410.83942116,9.996e-05,2]
[418961651,1774663832351,-769.68408299,9.996e-05,2]
[418961652,1774663832363,-19.47649585,9.996e-05,2]
[418961653,1774663832373,-300.0,9.996e-05,2]
[418961654,1774663832383,-203.52350415,9.997e-05,2]
[418961655,1774663832419,-344.81,9.997e-05,2]
[418961656,1774663832462,-261.45649585,9.997e-05,2]
[418961657,1774663832472,-1001.76089238,9.999e-05,2]
[418961658,1774663832481,-2260.04379862,9.999e-05,2]
[418961659,1774663832491,-150.0,9.999e-05,2]
[418961660,1774663832500,-490.93613798,0.0001,2]
[418961661,1774663832512,-4448.81299123,0.0001,2]
[418961663,1774663838232,-33664.25087079,0.0001,2]
[418961664,1774663838242,-310.45585293,0.0001,2]
[418961665,1774663838252,-456.69,0.00010109,2]
[418961666,1774663838262,-1800.0,0.00010139,2]
[418961667,1774663838271,-629.737925,0.0001025,2]
[418961668,1774663838282,-5533.0,0.000103,3]
[418961669,1774663838291,-88.44119883,0.00010426,2]
[418961670,1774663838303,-325.02024,0.00010426,2]
[418961671,1774663838551,-272.96856117,0.00010426,2]
[418961672,1774663838561,-456.69,0.00010457,2]
[418961673,1774663838571,-5533.0,0.000105,5]
[418961674,1774663838580,-150.0,0.000107,2]
[418961675,1774663838590,-456.69,0.00010806,2]
[418961676,1774663838599,-1063.0,0.00010996,2]
[418961677,1774663838609,-255.0,0.00010999,2]
[418961678,1774663838618,-456.69,0.00011154,2]
[418961679,1774663838628,-165.36,0.00011175,2]
[418961680,1774663838638,-1413.21,0.00011198,2]
[418961681,1774663838647,-563.52,0.00011279,2]
[418961682,1774663838657,-466.48,0.00011339,2]
[418961685,1774663838667,-500.29196162,0.000115,2]
[418961687,1774663838677,-456.69,0.00011503,2]
[418961689,1774663838687,-456.69,0.00011852,2]
[418961691,1774663838697,-165.36,0.00011873,2]
[418961693,1774663838706,-160.30121654,0.00011875,2]
[418961695,1774663838716,-175.15,0.00012,2]
[418961697,1774663838726,-320.83,0.00012024,2]
[418961698,1774663838735,-433.0,0.00012099,2]
[418961699,1774663838745,-199.05,0.00012107,2]
[418961700,1774663838754,-456.69,0.000122,2]
[418961701,1774663838764,-500.34210025,0.0001225,2]
[418961703,1774663838773,-199.77172522,0.0001225,2]
[418961705,1774663838783,-501.48601759,0.0001225,2]
[418961707,1774663838793,-502.16371872,0.0001225,2]
[418961708,1774663838802,-500.13692831,0.0001225,2]
[418961709,1774663838812,-501.55583248,0.0001225,2]
[418961710,1774663838822,-500.0,0.000124,2]
[418961711,1774663838831,-456.69,0.00012549,2]
[418961712,1774663838841,-165.36,0.00012572,2]
[418961713,1774663838851,-1413.21,0.00012597,2]
[418961714,1774663838861,-500.0,0.00012674,2]
[418961715,1774663838870,-500.0,0.00012685,2]
[418961716,1774663838880,-456.69,0.00012897,2]
[418961717,1774663838890,-500.67119855,0.00012999,2]
[418961718,1774663838899,-500.89869821,0.00012999,2]
[418961719,1774663838909,-501.16888489,0.00012999,2]
[418961720,1774663838919,-500.80083229,0.00012999,2]
[418961721,1774663838928,-500.12779556,0.00012999,2]
[418961722,1774663838938,-500.12556099,0.00012999,2]
[418961723,1774663838947,-500.82839147,0.00012999,2]
[418961724,1774663838957,-504.94598909,0.00012999,2]
[418961725,1774663838967,-501.86070028,0.00012999,2]
[418961726,1774663838977,-500.0,0.00012999,2]
[418961727,1774663838986,-500.0,0.00012999,2]
[418961728,1774663838996,-500.0,0.00012999,2]
[418961729,1774663839006,-500.0,0.00012999,2]
[418961730,1774663839016,-500.0,0.00012999,2]
[418961731,1774663839026,-500.0,0.00012999,2]
[418961732,1774663839036,-500.0,0.00012999,2]
[418961733,1774663839045,-500.0,0.00012999,2]
[418961734,1774663839055,-500.0,0.00012999,2]
[418961735,1774663839064,-500.0,0.00012999,2]
[418961736,1774663839074,-500.0,0.00012999,2]
[418961737,1774663839083,-500.0,0.00012999,2]
[418961738,1774663839093,-500.0,0.00012999,2]
[418961739,1774663839102,-367.70834261,0.00012999,2]
[418961740,1774663839112,-500.0,0.00012999,2]
[418961741,1774663839122,-500.0,0.00012999,2]
[418961742,1774663839132,-500.0,0.00012999,2]
[418961743,1774663839142,-250.0,0.00013,2]
[418961744,1774663839153,-220293.62701015,0.00013,7]
[418961745,1774663839162,-1000.0,0.00013066,2]
[418961746,1774663839172,-522.0,0.00013111,2]
[418961747,1774663839182,-1727.80789286,0.00013191,2]
[418961748,1774663839191,-456.69,0.00013246,2]
[418961749,1774663839201,-165.36,0.0001327,2]
[418961750,1774663839210,-151.6284,0.000136,2]
[418961751,1774663839220,-10000.0,0.000136,2]
[418961752,1774663839230,-8256.0,0.000136,2]
[418961753,1774663839240,-500.0,0.00013698,2]
[418961754,1774663839249,-16355.24,0.00013699,2]
[418961755,1774663839259,-165.36,0.00013969,2]
[418961756,1774663839268,-11377.46222263,0.0001399,2]
[418961757,1774663839278,-1413.21,0.00013997,2]
[418961758,1774663839288,-1500.0,0.00014,2]
[418961759,1774663839297,-17324.37637818,0.00014229,2]
[418961760,1774663839306,-500.0,0.00014329,2]
[418961761,1774663839316,-1000.0,0.00014365,2]
[418961762,1774663839325,-33003.204,0.00014365,2]
[418961763,1774663839335,-2500.0,0.00014365,2]
[418961764,1774663839344,-17324.37637814,0.00014415,2]
[418961765,1774663839353,-500.0,0.00014464,2]
[418961766,1774663839363,-500.0,0.00014464,2]
[418961767,1774663839372,-500.0,0.00014464,2]
[418961768,1774663839381,-513.91252019,0.00014464,2]
[418961769,1774663839391,-500.0,0.00014464,2]
[418961770,1774663839400,-500.0,0.00014464,2]
[418961771,1774663839409,-500.0,0.00014464,2]
[418961772,1774663839419,-512.75980746,0.00014464,2]
[418961773,1774663839428,-500.0,0.00014464,2]
[418961774,1774663839437,-516.83033456,0.00014464,2]
[418961775,1774663839447,-202707.7222,0.00014465,2]
[418961776,1774663839456,-194.83785405,0.00014472,2]
[418961777,1774663839466,-399.17595653,0.00014472,2]
[418961778,1774663839475,-500.0,0.00014472,2]
[418961779,1774663839484,-500.0,0.00014472,2]
[418961780,1774663839493,-312.98463605,0.00014472,2]
[418961781,1774663839503,-501.42806305,0.00014473,2]
[418961782,1774663839512,-357.94991842,0.00014473,2]
[418961783,1774663839522,-500.56638856,0.00014473,2]
[418961784,1774663839532,-500.34731765,0.00014473,2]
[418961785,1774663839541,-500.79895498,0.00014473,2]
[418961786,1774663839550,-500.99937745,0.00014473,2]
[418961787,1774663839559,-501.3205762,0.00014473,2]
[418961788,1774663839569,-501.11860716,0.00014473,2]
[418961789,1774663839578,-501.29814269,0.00014473,2]
[418961790,1774663839587,-192.20375392,0.00014473,2]
[418961791,1774663839596,-500.0,0.00014473,2]
[418961792,1774663839605,-500.0,0.00014473,2]
[418961793,1774663839615,-500.76628735,0.00014473,2]
[418961794,1774663839624,-500.0,0.00014473,2]
[418961795,1774663839634,-500.73166115,0.00014473,2]
[418961796,1774663839644,-500.0,0.00014473,2]
[418961797,1774663839653,-500.0,0.00014473,2]
[418961798,1774663839663,-240.93308902,0.00014473,2]
[418961799,1774663839672,-500.27831929,0.00014473,2]
[418961800,1774663839681,-415.31553778,0.00014532,2]
[418961801,1774663839691,-17324.37637814,0.000146,2]
[418961802,1774663839700,-2011.48396912,0.00014662,2]
[418961803,1774663839710,-165.36,0.00014667,2]
[418961804,1774663839719,-348.303598,0.00014771,7]
[418961805,1774663839729,-323.736782,0.00014781,7]
[418961806,1774663839738,-314.004314,0.00014781,2]
[418961807,1774663839748,-410.475099,0.00014781,7]
[418961808,1774663839758,-17324.37637814,0.00014786,2]
[418961809,1774663839767,-49397.331,0.000148,2]
[418961810,1774663839777,-5130.345,0.000149,2]
[418961811,1774663839786,-351.184,0.000149,2]
[418961812,1774663839796,-400.0,0.000149,5]
[418961813,1774663839806,-2985.98816498,0.00014935,2]
[418961814,1774663839815,-17324.37637814,0.00014972,2]
[418961815,1774663839825,-545.76447195,0.00014972,2]
[418961816,1774663839835,-500.0,0.00014972,2]
[418961817,1774663839844,-514.51122523,0.00014972,2]
[418961818,1774663839853,-586.09491028,0.00014972,2]
[418961819,1774663839862,-513.50281889,0.00014972,2]
[418961820,1774663839872,-509.99225915,0.00014972,2]